bitfinex-derivatives/quotes_SOLF0:USTF0_20241127
["timestamp","ask_amount","ask_price","bid_price","bid_amount"]
[1732719124732,10.07361587,239.37,239.19,2.54675081]
[1732719124933,12.16231587,239.32,239.17,2.4723]
[1732719125131,10.07361587,239.32,239.17,2.4723]
[1732719126431,3.818,239.35,239.17,2.4723]
[1732719126630,3.818,239.35,239.17,6.1123]
[1732719126833,16.10369468,239.41,239.2,28.66369468]
[1732719127335,3.64,239.43,239.24,16.10369468]
[1732719127536,3.64,239.43,239.25,1.2351]
[1732719127834,3.64,239.44,239.38,2.0882]
[1732719128034,16.10369468,239.45,239.25,4.8751]
[1732719128334,3.64,239.45,239.4,2.088]
[1732719128531,3.64,239.45,239.28,16.10369468]
[1732719128732,3.64,239.45,239.29,2.5683]
[1732719128932,2.0876,239.44,239.36,2.0883]
[1732719129340,3.64,239.45,239.29,2.5683]
[1732719129639,3.64,239.46,239.36,2.0883]
[1732719129834,3.64,239.46,239.29,2.5683]
[1732719130333,16.10369468,239.45,239.29,2.5683]
[1732719130935,2.0922836,239.5,239.29,2.5683]
[1732719131137,0.62422094,239.49,239.36,16.10369468]
[1732719131546,2.0868,239.54,239.36,16.10369468]
[1732719131740,2.0869,239.53,239.44,2.0876]
[1732719132039,2.0869,239.53,239.37,1.2674]
[1732719132040,0.62405636,239.53,239.37,1.2674]
[1732719132237,16.10369468,239.57,239.37,1.2674]
[1732719132437,0.62401332,239.55,239.37,1.2674]
[1732719132839,16.10369468,239.57,239.37,1.2674]
[1732719133043,16.10369468,239.53,239.3,5.70262949]
[1732719133341,16.10369468,239.53,239.3,19.85889468]
[1732719133842,16.10369468,239.53,239.31,3.64]
[1732719134242,2.0871,239.51,239.43,2.0877]
[1732719134539,16.10369468,239.53,239.31,3.64]
[1732719134940,16.10369468,239.53,239.3,19.85889468]
[1732719135140,2.0875,239.46,239.38,2.0881]
[1732719135736,2.0875,239.46,239.39,2.0881]
[1732719135941,3.64,239.47,239.3,19.85889468]
[1732719136143,2.0876,239.44,239.3,19.85889468]
[1732719136338,2.0876,239.44,239.35,2.0884]
[1732719136540,2.0876,239.44,239.3,19.85889468]
[1732719136946,3.64,239.47,239.3,19.85889468]
[1732719137947,2.0876,239.45,239.37,2.0882]
[1732719138245,2.0876,239.45,239.3,19.85889468]
[1732719139153,3.64,239.47,239.3,19.85889468]
[1732719139647,16.10369468,239.49,239.3,19.85889468]
[1732719139648,3.64,239.48,239.3,19.85889468]
[1732719139944,3.64,239.48,239.22,45.62103599]
[1732719139945,16.10369468,239.4,239.25,2.54525874]
[1732719140143,3.64,239.39,239.24,1.2908]
[1732719140341,3.64,239.39,239.34,2.0885]
[1732719140546,3.64,239.39,239.24,1.2908]
[1732719141348,2.0883,239.37,239.29,2.0889]
[1732719141545,3.64,239.39,239.24,1.2908]
[1732719142048,2.0883,239.37,239.29,2.0889]
[1732719142949,2.0884,239.36,239.29,2.0889]
[1732719143353,3.64,239.39,239.29,2.0889]
[1732719143843,3.64,239.39,239.27,2.089]
[1732719144044,16.10369468,239.36,239.16,2.54832206]
[1732719144247,16.10369468,239.36,239.16,2.447]
[1732719144451,2.0891,239.27,239.16,2.447]
[1732719144650,3.46,239.26,239.1,1.2063]
[1732719144856,3.46,239.25,239.1,1.2063]
[1732719145059,3.46,239.25,239.08,1.2407]
[1732719145552,2.0896,239.22,239.13,2.0903]
[1732719145747,2.0896,239.22,239.08,1.2407]
[1732719145748,18.65709468,239.24,239.08,1.2407]
[1732719145952,18.65709468,239.24,239.05,1.2063]
[1732719145953,1.2161,239.23,239.05,1.2063]
[1732719147050,3.46,239.22,239.05,1.2063]
[1732719147650,2.09,239.17,239.05,1.2063]
[1732719148649,2.0899,239.18,239.1,2.0906]
[1732719148849,2.0899,239.18,239.05,1.2063]
[1732719149347,2.0899,239.18,239.1,2.0906]
[1732719149547,3.46,239.22,239.05,1.2063]
[1732719149748,16.10369468,239.2,239.04,2.091]
[1732719149949,3.46,239.22,238.96,6.91392949]
[1732719149950,16.10369468,239.16,238.96,3.76170043]
[1732719150253,16.10369468,239.16,238.96,2.4739]
[1732719150844,16.10369468,239.12,239.02,2.0912]
[1732719151152,3.46,239.11,238.96,2.4739]
[1732719151354,3.46,239.11,239.0,2.0914]
[1732719151653,3.46,239.11,238.96,2.4739]
[1732719151952,3.46,239.11,239.04,2.0911]
[1732719152150,3.46,239.11,238.96,2.4739]
[1732719152552,3.46,239.11,239.06,2.0909]
[1732719152750,3.46,239.11,238.96,5.9339]
[1732719154353,3.46,239.11,239.04,2.0911]
[1732719154550,3.46,239.11,238.96,5.9339]
[1732719154751,1.2161,239.23,238.99,16.10369468]
[1732719154752,3.46,239.12,238.99,16.10369468]
[1732719154957,3.46,239.14,239.09,2.0907]
[1732719155155,16.10369468,239.2,238.99,16.10369468]
[1732719155449,16.10369468,239.2,239.03,16.10369468]
[1732719155450,3.46,239.2,239.03,16.10369468]
[1732719155651,3.46,239.2,239.07,16.10369468]
[1732719156245,1.2161,239.23,239.08,1.2733]
[1732719156646,1.2161,239.23,239.18,2.0898]
[1732719156853,2.5534,239.24,239.11,16.10369468]
[1732719157056,3.46,239.29,239.17,2.09]
[1732719157255,3.46,239.29,239.12,3.46]
[1732719157455,3.46,239.28,239.12,3.46]
[1732719158053,2.4751,239.31,239.12,3.46]
[1732719158257,2.4751,239.31,239.15,16.10369468]
[1732719158762,2.4751,239.31,239.12,3.46]
[1732719158763,3.46,239.32,239.19,16.10369468]
[1732719159360,3.46,239.32,239.29,2.0889]
[1732719159755,3.46,239.32,239.19,16.10369468]
[1732719159756,3.46,239.32,239.2,1.3011]
[1732719160158,3.46,239.32,239.28,2.089]
[1732719160457,3.46,239.32,239.2,1.3011]
[1732719160655,3.46,239.38,239.2,4.7611]
[1732719161657,2.0882,239.37,239.25,2.0892]
[1732719161853,4.6765,239.39,239.2,4.7611]
[1732719162257,1.2165,239.39,239.2,4.7611]
[1732719162456,3.46,239.38,239.2,4.7611]
[1732719163057,3.46,239.38,239.26,2.0892]
[1732719163459,2.0884,239.35,239.26,2.0892]
[1732719163660,3.46,239.38,239.2,4.7611]
[1732719164357,16.10369468,239.36,239.23,2.0894]
[1732719164552,2.0887,239.32,239.2,4.7611]
[1732719165054,2.0888,239.31,239.22,2.0895]
[1732719165363,1.1975,239.31,239.15,16.10369468]
[1732719165558,1.1975,239.31,239.19,2.0897]
[1732719165755,1.1975,239.31,239.15,16.10369468]
[1732719166962,1.1975,239.31,239.19,2.0897]
[1732719167266,1.1975,239.31,239.15,16.10369468]
[1732719167558,16.10369468,239.36,239.21,2.0896]
[1732719167559,18.19199468,239.36,239.21,2.0896]
[1732719167759,16.10369468,239.36,239.16,1.2724]
[1732719168163,2.0885,239.35,239.22,2.0896]
[1732719168360,2.0885,239.35,239.16,1.2724]
[1732719168663,16.10369468,239.36,239.16,1.2724]
[1732719168959,2.0885,239.35,239.27,2.0891]
[1732719169561,2.0885,239.34,239.27,2.0891]
[1732719169763,2.0885,239.34,239.26,2.0892]
[1732719170061,18.19209468,239.36,239.16,1.2724]
[1732719170365,18.19209468,239.36,239.27,2.089]
[1732719170560,18.19209468,239.36,239.16,1.2724]
[1732719170561,2.0884,239.35,239.16,1.2724]
[1732719171160,2.0885,239.34,239.16,1.2724]
[1732719171462,16.10369468,239.36,239.16,1.2724]
[1732719171968,2.0885,239.35,239.16,1.2724]
[1732719172356,1.2823,239.37,239.2,16.10369468]
[1732719172764,1.2165,239.39,239.35,2.0884]
[1732719172956,1.2165,239.39,239.26,3.26]
[1732719173158,26.52839468,239.76,239.28,16.10369468]
[1732719173461,2.0875,239.46,239.28,16.10369468]
[1732719173655,2.4138,239.51,239.28,16.10369468]
[1732719173856,2.4138,239.51,239.39,2.088]
[1732719174059,2.4138,239.51,239.35,3.26]
[1732719174867,0.2348,239.47,239.35,3.26]
[1732719175367,2.3222,239.47,239.4,2.0879]
[1732719175559,0.2348,239.47,239.35,3.26]
[1732719176163,0.2348,239.47,239.33,2.5479]
[1732719176368,2.3222,239.47,239.39,2.0881]
[1732719176670,0.2348,239.47,239.34,3.26]
[1732719177064,2.3222,239.47,239.34,3.26]
[1732719177265,0.2348,239.47,239.34,3.26]
[1732719177662,2.0875,239.46,239.33,2.0885]
[1732719177867,4.1463,239.47,239.3,3.26]
[1732719178369,2.0876,239.44,239.36,2.0883]
[1732719178568,4.1463,239.47,239.3,3.26]
[1732719179464,2.0877,239.43,239.36,2.0883]
[1732719179670,2.0877,239.43,239.3,3.26]
[1732719179858,4.1463,239.47,239.3,3.26]
[1732719180866,4.1463,239.47,239.31,1.2392]
[1732719181267,4.1463,239.47,239.32,1.2979]
[1732719181667,4.1463,239.47,239.33,16.10369468]
[1732719181866,1.5345,239.47,239.43,2.0877]
[1732719182166,1.5345,239.47,239.33,16.10369468]
[1732719182370,0.2348,239.47,239.45,2.0875]
[1732719182571,0.2348,239.47,239.38,3.26]
[1732719183066,0.2348,239.47,239.33,16.10369468]
[1732719183067,16.10369468,239.45,239.18,12.56]
[1732719183271,16.10369468,239.45,239.22,16.10369468]
[1732719183467,2.0878,239.42,239.28,2.089]
[1732719183663,2.0878,239.42,239.25,3.26]
[1732719183869,16.10369468,239.45,239.25,3.26]
[1732719184072,2.0879,239.42,239.32,2.0886]
[1732719184375,2.09609798,239.43,239.25,3.26]
[1732719184665,2.088,239.4,239.29,2.0889]
[1732719184873,2.088,239.4,239.25,3.26]
[1732719185869,2.088,239.4,239.32,2.0887]
[1732719186862,4.6427,239.41,239.25,3.26]
[1732719187273,2.088,239.4,239.29,2.0889]
[1732719187470,2.5548,239.41,239.25,3.26]
[1732719187669,18.65849468,239.41,239.25,3.26]
[1732719187870,18.65849468,239.41,239.17,2.5957]
[1732719188068,18.65849468,239.41,239.18,3.26]
[1732719188265,18.65849468,239.41,239.19,3.26]
[1732719188465,16.10369468,239.37,239.19,3.26]
[1732719188676,2.0889,239.3,239.22,2.0895]
[1732719188979,3.26,239.36,239.04,5.70262949]
[1732719188980,16.10369468,239.33,239.04,5.70262949]
[1732719189167,16.10369468,239.25,239.07,1.2411]
[1732719189367,1.2527,239.24,239.07,1.2411]
[1732719190170,2.09,239.17,239.09,2.0906]
[1732719190471,16.10369468,239.21,239.05,4.5468]
[1732719190775,1.3169,239.2,239.05,4.5468]
[1732719191574,3.4067,239.2,239.1,2.0906]
[1732719191776,1.3169,239.2,239.1,2.0906]
[1732719191979,1.3169,239.2,239.05,4.5468]
[1732719192171,2.0898,239.19,239.1,2.0906]
[1732719192876,2.0901,239.16,239.06,2.0909]
[1732719193075,2.0901,239.16,239.05,4.5468]
[1732719193271,2.0901,239.16,239.05,1.2868]
[1732719193679,2.0901,239.16,239.06,2.0909]
[1732719193879,2.0901,239.16,239.02,3.26]
[1732719194178,1.3169,239.2,239.02,3.26]
[1732719194379,1.3169,239.2,239.01,1.2411]
[1732719194572,1.3169,239.2,239.02,3.26]
[1732719194777,1.3169,239.2,239.12,2.0904]
[1732719195175,1.3169,239.2,239.02,3.26]
[1732719195677,3.4067,239.2,239.12,2.0904]
[1732719195877,1.3169,239.2,239.02,3.26]
[1732719196674,1.3169,239.2,239.06,2.0909]
[1732719196675,2.0903,239.14,239.06,2.0909]
[1732719196883,1.3169,239.2,239.01,1.2411]
[1732719197279,2.0902,239.15,239.07,2.0908]
[1732719197877,1.3169,239.2,238.98,23.74116853]
[1732719197878,16.10369468,239.17,238.98,23.74116853]
[1732719198083,16.10369468,239.17,238.84,192.60126926]
[1732719198084,16.10369468,239.04,238.78,2.5748]
[1732719198281,16.10369468,239.04,238.82,16.10369468]
[1732719198783,16.10369468,239.04,238.83,3.1]
[1732719198784,2.0914,239.01,238.83,3.1]
[1732719199385,16.10369468,239.04,238.92,2.0922]
[1732719199585,16.10369468,239.04,238.91,3.1]
[1732719199882,16.10369468,239.04,238.92,3.1]
[1732719200086,2.0914,239.01,238.82,16.10369468]
[1732719200288,2.0914,239.01,238.83,3.1]
[1732719200680,2.0914,239.01,238.78,5.11630105]
[1732719200883,2.0914,239.01,238.8,16.10369468]
[1732719201085,16.10369468,239.04,238.8,16.10369468]
[1732719201086,2.0916,238.99,238.8,16.10369468]
[1732719201284,16.10369468,239.04,238.8,16.10369468]
[1732719201685,16.10369468,239.04,238.81,3.1]
[1732719201986,16.10369468,239.04,238.84,16.10369468]
[1732719202484,2.091,239.06,238.84,16.10369468]
[1732719202786,21.24988629,239.08,238.95,2.0919]
[1732719203085,2.0909,239.07,238.94,3.1]
[1732719203287,19.20369468,239.08,238.95,2.0918]
[1732719204585,19.20369468,239.08,238.94,3.1]
[1732719204586,2.0911,239.05,238.96,2.0918]
[1732719204888,19.20369468,239.08,238.94,3.1]
[1732719205089,2.0909,239.07,238.99,2.0916]
[1732719205279,16.10369468,239.08,238.99,2.0916]
[1732719205785,16.10369468,239.08,238.94,3.1]
[1732719206586,18.19449468,239.08,238.95,3.1]
[1732719206787,16.10369468,239.08,238.96,3.1]
[1732719206985,16.10369468,239.08,238.94,3.1]
[1732719207182,16.10369468,239.08,238.84,16.10369468]
[1732719207386,2.091,239.06,238.98,2.0917]
[1732719207584,16.10369468,239.08,238.84,16.10369468]
[1732719207585,16.10369468,239.08,238.94,3.1]
[1732719207781,16.10369468,239.08,238.82,2.54150105]
[1732719207782,3.7665,239.12,238.95,3.1]
[1732719207986,3.7665,239.12,238.96,5.6627]
[1732719208192,3.7665,239.12,239.03,2.0912]
[1732719208193,5.857,239.12,239.03,2.0912]
[1732719208387,16.10369468,239.13,238.97,3.1]
[1732719208781,16.10369468,239.13,239.04,2.0911]
[1732719209485,2.0905,239.11,239.04,2.0911]
[1732719209683,16.10369468,239.13,239.02,2.0912]
[1732719210290,2.0908,239.09,239.03,2.0912]
[1732719210488,16.10369468,239.13,238.97,3.1]
[1732719210796,1.2931,239.12,239.01,2.0913]
[1732719210986,1.2931,239.12,238.97,3.1]
[1732719211789,2.0906,239.1,239.01,2.0913]
[1732719211995,1.2931,239.12,238.97,3.1]
[1732719212490,1.2931,239.12,239.01,2.0913]
[1732719212690,1.2931,239.12,238.97,3.1]
[1732719213097,2.0905,239.11,239.01,2.0913]
[1732719213290,2.0905,239.11,238.97,3.1]
[1732719213491,1.2931,239.12,238.98,3.1]
[1732719213697,2.0907,239.09,238.98,3.1]
[1732719213898,1.2931,239.12,238.96,2.5627]
[1732719214093,16.10369468,239.06,238.96,2.5627]
[1732719214397,2.0911,239.05,238.98,2.0916]
[1732719214795,16.10369468,239.06,238.95,3.1]
[1732719215593,16.10369468,239.06,238.98,2.0916]
[1732719216297,2.4319,239.11,238.9,2.5068]
[1732719216298,10.0861742,239.03,238.9,2.5068]
[1732719216499,10.0861742,239.03,238.91,3.1]
[1732719217196,12.1773742,239.03,238.95,2.0919]
[1732719217395,10.0861742,239.03,238.95,2.0919]
[1732719217788,10.0861742,238.99,238.89,1.2733]
[1732719217992,10.0861742,238.92,238.85,0.17215]
[1732719218188,10.0861742,238.89,238.85,0.17215]
[1732719218697,16.15604677,238.91,238.85,0.17215]
[1732719218895,16.15604677,238.87,238.85,0.17215]
[1732719219297,16.15604677,238.87,238.73,3.1]
[1732719219504,16.15604677,238.87,238.71,3.7673]
[1732719219799,2.0928,238.85,238.71,3.7673]
[1732719219995,16.15604677,238.87,238.75,2.0937]
[1732719220199,16.15604677,238.83,238.62,68.43155397]
[1732719220404,16.15604677,238.79,238.63,1.2619]
[1732719220702,16.15604677,238.79,238.69,2.0942]
[1732719221097,18.24934677,238.79,238.63,1.2619]
[1732719221304,16.15604677,238.79,238.63,1.2619]
[1732719222398,16.15604677,238.79,238.72,2.0939]
[1732719222593,3.1,238.8,238.72,2.0939]
[1732719222996,1.2043,238.82,238.63,1.2619]
[1732719222997,3.1,238.82,238.63,1.2619]
[1732719223398,5.1931,238.82,238.72,2.0938]
[1732719223600,3.1,238.82,238.63,1.2619]
[1732719224001,2.0932,238.81,238.72,2.0939]
[1732719224396,2.0933,238.8,238.68,2.0942]
[1732719224600,2.0933,238.8,238.63,1.2619]
[1732719225102,2.0933,238.8,238.72,2.0939]
[1732719225905,3.1,238.82,238.63,1.2619]
[1732719226107,16.15604677,238.83,238.63,1.2619]
[1732719226301,16.15604677,238.87,238.68,16.15604677]
[1732719226505,20.50064677,238.91,238.81,2.0931]
[1732719226804,17.40064677,238.91,238.69,3.1]
[1732719227205,3.06,238.9,238.72,16.15604677]
[1732719227403,3.06,238.9,238.73,1.2635]
[1732719227804,3.06,238.9,238.74,1.1979]
[1732719228301,32.73855855,240.98,238.76,16.15604677]
[1732719228606,49.10783782,242.68,238.75,1.2635]
[1732719228607,2.09637487,239.0,238.84,16.15604677]
[1732719228810,16.15604677,239.05,238.85,4.3235]
[1732719229305,16.15604677,239.05,238.96,2.0918]
[1732719229709,16.15604677,239.05,238.86,1.2547]
[1732719229897,18.24704677,239.05,238.87,1.311]
[1732719230103,16.15604677,239.05,238.87,1.311]
[1732719230410,3.06,239.07,238.99,2.0915]
[1732719230802,3.06,239.07,238.92,3.06]
[1732719230803,19.21604677,239.09,238.92,3.06]
[1732719231003,19.21604677,239.09,238.93,10.58172813]
[1732719231004,3.06,239.09,238.93,10.58172813]
[1732719231210,3.06,239.09,238.93,5.66243232]
[1732719231407,19.96004677,239.12,238.93,5.66243232]
[1732719231802,19.96004677,239.12,238.94,4.92161877]
[1732719232010,16.15604677,239.12,238.95,4.92117933]
[1732719232204,2.13148243,239.23,238.95,4.92117933]
[1732719232205,16.15604677,239.16,238.97,22.64972929]
[1732719232408,16.15604677,239.16,238.98,50.9794352]
[1732719232712,16.15604677,239.16,238.99,16.17179074]
[1732719232907,16.15604677,239.16,239.09,2.0907]
[1732719233311,16.15604677,239.16,239.0,1.3047]
[1732719234012,16.15604677,239.16,239.07,2.0908]
[1732719234203,16.15604677,239.16,239.0,1.3047]
[1732719234605,16.15604677,239.16,239.04,2.0911]
[1732719234806,16.15604677,239.16,239.0,1.3047]
[1732719235002,16.15604677,239.16,238.99,4.2535]
[1732719235208,18.24614677,239.16,238.99,4.2535]
[1732719236009,2.0902,239.15,238.99,4.2535]
[1732719236406,16.15604677,239.16,238.99,4.2535]
[1732719236603,16.15604677,239.16,239.05,2.091]
[1732719237004,16.15604677,239.12,238.99,1.1935]
[1732719237203,16.15604677,239.12,238.97,1.1913]
[1732719237204,16.15604677,239.08,238.97,1.1913]
[1732719237805,16.15604677,239.08,239.02,2.0913]
[1732719238312,3.06,239.11,238.97,1.1913]
[1732719239212,16.15604677,239.08,238.97,1.1913]
[1732719240014,16.15604677,239.08,239.01,2.0914]
[1732719240415,3.06,239.11,239.05,2.091]
[1732719240611,3.06,239.11,238.97,1.1913]
[1732719241615,2.0907,239.09,238.99,2.0915]
[1732719241807,16.15604677,239.08,238.94,3.06]
[1732719242617,3.06,239.11,238.94,3.06]
[1732719243119,3.7097,239.2,238.96,16.15604677]
[1732719243120,19.21604677,239.16,238.96,16.15604677]
[1732719243317,16.15604677,239.16,238.96,16.15604677]
[1732719243613,18.24614677,239.16,239.06,2.0909]
[1732719243818,16.15604677,239.16,239.06,2.0909]
[1732719244015,16.15604677,239.16,239.01,3.06]
[1732719245609,18.24614677,239.16,239.01,3.06]
[1732719245809,16.15604677,239.16,239.01,3.06]
[1732719246314,2.0903,239.14,239.06,2.0909]
[1732719246514,16.15604677,239.16,239.01,3.06]
[1732719247016,16.15604677,239.12,238.98,3.06]
[1732719247918,18.24654677,239.12,239.03,2.0912]
[1732719248119,18.24654677,239.12,238.98,3.06]
[1732719248518,16.15604677,239.12,238.98,3.06]
[1732719249019,16.15604677,239.12,238.94,3.06]
[1732719249621,16.15604677,239.16,238.94,3.06]
[1732719250019,3.06,239.15,238.94,3.06]
[1732719250329,10.07677522,239.14,239.07,2.0908]
[1732719250726,2.0903,239.13,239.01,3.06]
[1732719251827,10.07677522,239.14,239.01,3.06]
[1732719252328,12.16707522,239.14,239.06,2.0909]
[1732719252523,10.07677522,239.14,239.06,2.0909]
[1732719252724,10.07677522,239.1,238.97,3.06]
[1732719253228,10.07677522,239.1,239.04,2.0911]
[1732719253429,2.0905,239.12,239.04,2.0911]
[1732719253728,3.06,239.13,238.92,11.29647522]
[1732719253729,10.07677522,239.08,238.92,11.29647522]
[1732719254129,10.07677522,239.05,238.92,1.2197]
[1732719254427,10.07677522,239.05,238.99,2.0916]
[1732719256623,10.07677522,239.05,238.9,4.2511]
[1732719256824,10.07677522,239.02,238.9,4.2511]
[1732719257023,2.0915,239.0,238.92,2.0922]
[1732719257219,10.07677522,239.02,238.85,10.07677522]
[1732719257524,2.0914,239.01,238.92,2.0921]
[1732719257730,10.07677522,239.02,238.87,3.06]
[1732719258029,2.0915,239.01,238.91,2.0922]
[1732719258228,2.0915,239.01,238.87,3.06]
[1732719258819,10.07677522,239.02,238.87,3.06]
[1732719259025,3.06,239.06,238.84,2.5179]
[1732719259026,10.07677522,238.96,238.84,2.5179]
[1732719259321,10.07677522,238.96,238.89,2.0924]
[1732719259833,3.06,238.98,238.84,2.5179]
[1732719260220,3.06,238.98,238.93,2.0921]
[1732719260422,10.07677522,238.99,238.93,2.0921]
[1732719260631,10.07677522,239.02,238.96,2.0918]
[1732719260830,10.07677522,239.05,238.91,3.06]
[1732719261524,12.65577522,239.08,238.92,10.07677522]
[1732719262319,12.65577522,239.08,238.91,3.06]
[1732719262320,2.579,239.08,239.01,2.0914]
[1732719263024,4.6698,239.08,239.01,2.0914]
[1732719263226,2.579,239.08,239.01,2.0914]
[1732719263620,2.579,239.08,238.91,19.18953933]
[1732719264228,1.2827,239.08,238.92,4.94905225]
[1732719264424,16.12953933,239.12,238.92,4.94905225]
[1732719264621,16.12953933,239.12,238.92,10.61148457]
[1732719264930,16.12953933,239.12,238.91,24.85197165]
[1732719265329,16.12953933,239.12,238.91,19.18953933]
[1732719266425,2.0907,239.09,238.91,19.18953933]
[1732719267431,2.0908,239.08,238.91,19.18953933]
[1732719267633,16.12953933,239.12,239.02,2.0913]
[1732719268134,2.0906,239.1,239.02,2.0913]
[1732719268332,16.12953933,239.12,238.91,19.18953933]
[1732719268631,2.0905,239.11,238.91,24.85197165]
[1732719268929,16.12953933,239.12,238.98,2.0917]
[1732719269122,16.12953933,239.12,238.98,3.06]
[1732719269321,16.12953933,239.16,238.98,3.06]
[1732719269532,16.12953933,239.16,239.06,2.0909]
[1732719269733,16.12953933,239.16,238.98,3.06]
[1732719269933,2.0903,239.14,238.98,3.06]
[1732719270228,16.12953933,239.16,238.98,3.06]
[1732719270427,16.12953933,239.07,238.94,2.54213434]
[1732719270634,16.12953933,239.07,238.92,3.06]
[1732719271529,2.091,239.06,238.92,3.06]
[1732719271733,16.12953933,239.07,238.92,3.06]
[1732719272230,2.0911,239.05,238.97,2.0917]
[1732719272428,2.0911,239.05,238.91,3.06]
[1732719272833,2.4196,239.08,238.9,2.5732]
[1732719272834,16.12953933,239.03,238.9,2.5732]
[1732719273332,16.12953933,239.03,238.91,2.55400106]
[1732719273529,16.12953933,239.03,238.9,2.5732]
[1732719273741,16.12953933,239.03,238.91,2.55425511]
[1732719273925,16.12953933,239.03,238.9,2.5732]
[1732719274239,16.12953933,239.03,238.91,2.55422528]
[1732719274533,16.12953933,239.03,238.9,2.5732]
[1732719274731,16.12953933,239.07,238.91,2.55464305]
[1732719274926,16.12953933,239.07,238.92,2.55464305]
[1732719275130,2.4196,239.08,238.93,16.12953933]
[1732719275131,1.218,239.08,238.93,16.12953933]
[1732719275331,16.12953933,239.11,238.93,16.12953933]
[1732719275631,16.12953933,239.11,239.03,2.0912]
[1732719275934,16.12953933,239.11,238.98,3.06]
[1732719276334,18.22003933,239.11,239.02,2.0912]
[1732719276531,18.22003933,239.11,238.98,3.06]
[1732719276732,16.12953933,239.11,238.98,3.06]
[1732719276933,2.0907,239.09,239.01,2.0913]
[1732719277932,16.12953933,239.11,239.01,2.0914]
[1732719277933,2.0908,239.08,239.01,2.0914]
[1732719278237,16.12953933,239.11,238.98,3.06]
[1732719279141,18.22013933,239.11,239.02,2.0912]
[1732719279344,16.12953933,239.11,239.02,2.0912]
[1732719279637,2.0903,239.14,239.06,2.0909]
[1732719280036,17.43083933,239.15,239.06,2.0909]
[1732719280236,2.0903,239.13,239.07,2.0908]
[1732719281034,2.0905,239.11,239.06,2.0909]
[1732719281235,2.0905,239.11,238.98,3.06]
[1732719281236,16.12953933,239.11,238.98,3.06]
[1732719282638,16.12953933,239.11,239.05,2.091]
[1732719283138,16.12953933,239.11,238.98,3.06]
[1732719283335,16.12953933,239.11,239.06,2.0909]
[1732719284138,18.22013933,239.11,239.04,2.0911]
[1732719284438,10.0802444,239.1,238.98,3.06]
[1732719285541,10.0802444,239.1,239.03,2.0912]
[1732719285838,10.0802444,239.1,238.96,3.06]
[1732719286039,12.1708444,239.1,239.03,2.0912]
[1732719286436,10.0802444,239.1,238.96,3.06]
[1732719287543,10.0802444,239.13,238.97,10.0802444]
[1732719288334,10.0802444,239.13,238.96,3.06]
[1732719288335,1.3013,239.15,239.0,10.0802444]
[1732719288534,1.3013,239.15,239.01,1.2004]
[1732719288841,9.092432,239.14,239.01,1.2004]
[1732719289041,3.3915,239.15,239.01,1.2004]
[1732719289239,1.3013,239.15,239.08,2.0908]
[1732719290243,1.3013,239.15,239.09,2.0907]
[1732719290744,1.3013,239.15,239.01,1.2004]
[1732719290943,1.3013,239.15,239.05,2.091]
[1732719291145,1.3013,239.15,239.03,3.06]
[1732719291849,10.0802444,239.13,239.03,3.06]
[1732719292247,10.0802444,239.13,239.08,2.0908]
[1732719292547,1.3013,239.15,239.03,3.06]
[1732719293343,3.3915,239.15,239.08,2.0907]
[1732719293544,3.3915,239.15,239.02,3.06]
[1732719293744,1.3013,239.15,239.09,2.0907]
[1732719294446,3.3915,239.15,239.09,2.0907]
[1732719295452,3.3915,239.15,239.02,3.06]
[1732719295453,3.3915,239.15,239.1,2.0906]
[1732719295953,12.1706444,239.13,239.07,2.0908]
[1732719296354,10.0802444,239.13,239.08,2.0907]
[1732719296742,10.0802444,239.13,239.02,3.06]
[1732719296941,12.1705444,239.13,239.07,2.0908]